fUSD/lending_fUSD_20240214
["ID","MTS","AMOUNT","RATE_DAILY","PERIOD"]
[314005605,1707923445279,-900.0,0.00036667,2]
[314005606,1707923445289,-900.0,0.00036667,2]
[314005607,1707923445299,-900.0,0.00036667,2]
[314005608,1707923445310,-900.0,0.00036667,2]
[314005609,1707923445320,-900.0,0.00036667,2]
[314005610,1707923445329,-900.0,0.00036667,2]
[314005611,1707923445339,-900.0,0.00036667,2]
[314005612,1707923445349,-900.0,0.00036667,2]
[314005613,1707923445360,-900.0,0.00036667,2]
[314005614,1707923445370,-900.0,0.00036667,2]
[314005615,1707923445380,-900.0,0.00036667,2]
[314005616,1707923445390,-900.0,0.00036667,2]
[314005617,1707923445400,-900.0,0.00036667,2]
[314005618,1707923445409,-900.0,0.00036667,2]
[314005619,1707923445420,-900.0,0.00036667,2]
[314005620,1707923445430,-900.0,0.00036667,2]
[314005621,1707923445439,-900.0,0.00036667,2]
[314005622,1707923445449,-900.0,0.00036667,2]
[314005623,1707923445458,-900.0,0.00036667,2]
[314005624,1707923445468,-900.0,0.00036667,2]
[314005625,1707923445477,-900.0,0.00036667,2]
[314005626,1707923445487,-900.0,0.00036667,2]
[314005627,1707923445497,-530.0,0.00036667,2]
[314005628,1707923445507,-152.09,0.00036667,2]
[314005629,1707923445516,-162.92968762,0.0003668,30]
[314005630,1707923445526,-34907.0,0.0003668,5]
[314005631,1707923445536,-150.0,0.00036686,2]
[314005632,1707923445545,-300.0,0.00036698,2]
[314005633,1707923445557,-200.84754681,0.000367,3]
[314005634,1707923445566,-150.0,0.00036704,2]
[314005635,1707923445575,-150.0,0.00036711,30]
[314005636,1707923445585,-150.0,0.00036711,2]
[314005637,1707923445595,-150.0,0.00036711,2]
[314005638,1707923445604,-402.94010617,0.00036712,2]
[314005639,1707923445617,-506.94707941,0.00036712,2]
[314005640,1707923445627,-503.07215791,0.00036712,2]
[314005641,1707923445636,-500.0,0.00036712,2]
[314005642,1707923445646,-500.0,0.00036712,2]
[314005643,1707923445655,-500.0,0.00036712,2]
[314005644,1707923445664,-250.0,0.00036712,2]
[314005645,1707923445674,-500.0,0.00036712,2]
[314005646,1707923445683,-500.0,0.00036712,2]
[314005647,1707923445693,-500.0,0.00036712,2]
[314005648,1707923445703,-500.0,0.00036712,2]
[314005649,1707923445713,-500.0,0.00036712,2]
[314005650,1707923445722,-500.0,0.00036712,2]
[314005651,1707923445732,-503.83863483,0.00036712,2]
[314005652,1707923445741,-500.0,0.00036712,2]
[314005653,1707923445750,-500.0,0.00036712,2]
[314005654,1707923445759,-500.0,0.00036712,2]
[314005655,1707923445770,-500.0,0.00036712,2]
[314005656,1707923445779,-500.0,0.00036712,2]
[314005657,1707923445789,-500.0,0.00036712,2]
[314005658,1707923445799,-500.0,0.00036712,2]
[314005659,1707923445809,-500.0,0.00036712,2]
[314005660,1707923445819,-500.0,0.00036712,2]
[314005661,1707923445829,-500.0,0.00036712,2]
[314005662,1707923445838,-500.0,0.00036712,2]
[314005663,1707923445848,-500.0,0.00036712,2]
[314005664,1707923445859,-500.0,0.00036712,2]
[314005665,1707923445869,-500.0,0.00036712,2]
[314005666,1707923445878,-500.0,0.00036712,2]
[314005667,1707923445888,-500.0,0.00036712,2]
[314005669,1707923445897,-500.0,0.00036712,2]
[314005671,1707923445907,-500.0,0.00036712,2]
[314005673,1707923445918,-500.0,0.00036712,2]
[314005674,1707923445928,-500.0,0.00036712,2]
[314005675,1707923445937,-500.0,0.00036712,2]
[314005676,1707923445951,-500.0,0.00036712,2]
[314005677,1707923445966,-636.47,0.00036712,2]
[314005679,1707923445976,-500.0,0.00036712,2]
[314005681,1707923445986,-500.0,0.00036712,2]
[314005683,1707923445995,-500.0,0.00036712,2]
[314005685,1707923446005,-500.0,0.00036712,2]
[314005687,1707923446015,-500.0,0.00036712,2]
[314005689,1707923446025,-500.0,0.00036712,2]
[314005691,1707923446034,-500.0,0.00036712,2]
[314005692,1707923446044,-500.0,0.00036712,2]
[314005693,1707923446118,-500.0,0.00036712,2]
[314005694,1707923446129,-500.0,0.00036712,2]
[314005695,1707923446138,-500.0,0.00036712,2]
[314005696,1707923446147,-500.0,0.00036712,2]
[314005697,1707923446157,-500.0,0.00036712,2]
[314005698,1707923446166,-500.0,0.00036712,2]
[314005699,1707923446176,-500.0,0.00036712,2]
[314005700,1707923446186,-1000.0,0.00036712,2]
[314005701,1707923446198,-500.0,0.00036712,2]
[314005702,1707923446207,-500.0,0.00036712,2]
[314005703,1707923446218,-500.0,0.00036712,2]
[314005704,1707923446227,-500.0,0.00036712,2]
[314005705,1707923446237,-500.0,0.00036712,2]
[314005706,1707923446246,-500.0,0.00036712,2]
[314005707,1707923446256,-500.0,0.00036712,2]
[314005708,1707923446266,-500.0,0.00036712,2]
[314005709,1707923446275,-500.0,0.00036712,2]
[314005710,1707923446285,-500.0,0.00036712,2]
[314005711,1707923446294,-500.0,0.00036712,2]
[314005712,1707923446303,-500.0,0.00036712,2]
[314005713,1707923446312,-500.0,0.00036712,2]
[314005714,1707923446321,-500.0,0.00036712,2]
[314005715,1707923446331,-500.0,0.00036712,2]
[314005716,1707923446341,-536.83,0.00036712,2]
[314005717,1707923446350,-500.0,0.00036712,2]
[314005718,1707923446361,-171.34104251,0.00036712,2]
[314005719,1707923446370,-500.0,0.00036712,2]
[314005720,1707923446379,-500.0,0.00036712,2]
[314005721,1707923446388,-1030.58,0.00036712,2]
[314005722,1707923446397,-500.0,0.00036712,2]
[314005723,1707923446407,-500.0,0.00036712,2]
[314005724,1707923446416,-500.0,0.00036712,2]
[314005725,1707923446425,-500.0,0.00036712,2]
[314005726,1707923446434,-511.55,0.00036712,2]
[314005727,1707923446443,-500.0,0.00036712,2]
[314005728,1707923446452,-500.0,0.00036712,2]
[314005729,1707923446461,-564.0,0.00036712,2]
[314005730,1707923446471,-500.0,0.00036712,2]
[314005731,1707923446480,-500.0,0.00036712,2]
[314005732,1707923446489,-500.0,0.00036712,2]
[314005734,1707923446497,-500.0,0.00036712,2]
[314005735,1707923446506,-500.0,0.00036712,2]
[314005736,1707923446515,-555.05177294,0.00036712,2]
[314005737,1707923446524,-500.0,0.00036712,2]
[314005738,1707923446534,-500.0,0.00036712,2]
[314005739,1707923446543,-1240.83,0.00036712,2]
[314005740,1707923446552,-500.0,0.00036712,2]
[314005741,1707923446562,-500.0,0.00036712,2]
[314005742,1707923446571,-205.55071146,0.00036712,2]
[314005743,1707923446581,-1171.11,0.00036712,2]
[314005744,1707923446591,-508.31,0.00036712,2]
[314005745,1707923446601,-564.08,0.00036712,2]
[314005746,1707923446614,-1281.17,0.00036712,2]
[314005747,1707923446623,-1147.23,0.00036712,2]
[314005748,1707923446633,-500.0,0.00036712,2]
[314005749,1707923446643,-500.0,0.00036712,2]
[314005750,1707923446652,-568.35,0.00036712,2]
[314005751,1707923446662,-500.0,0.00036712,2]
[314005752,1707923446671,-506.58560065,0.00036712,2]
[314005753,1707923446680,-1433.14,0.00036712,2]
[314005754,1707923446689,-500.0,0.00036712,2]
[314005755,1707923446698,-500.0,0.00036712,2]
[314005756,1707923446707,-500.0,0.00036712,2]
[314005757,1707923446718,-500.0,0.00036712,2]
[314005758,1707923446727,-500.0,0.00036712,2]
[314005759,1707923446737,-500.0,0.00036712,2]
[314005760,1707923446746,-500.0,0.00036712,2]
[314005761,1707923446755,-500.0,0.00036712,2]
[314005762,1707923446765,-530.02,0.00036712,2]
[314005763,1707923446774,-500.0,0.00036712,2]
[314005764,1707923446783,-500.0,0.00036712,2]
[314005765,1707923446793,-528.29,0.00036712,2]
[314005766,1707923446804,-531.33491749,0.00036712,2]
[314005767,1707923446813,-485.84175044,0.00036712,2]
[314005768,1707923446822,-500.0,0.00036712,2]
[314005769,1707923446831,-639.16593671,0.00036712,2]
[314005770,1707923446841,-1489.83,0.00036712,2]
[314005771,1707923446850,-500.0,0.00036712,2]
[314005772,1707923446862,-500.0,0.00036712,2]
[314005773,1707923446871,-1024.97,0.00036712,2]
[314005774,1707923446879,-500.0,0.00036712,2]
[314005775,1707923446889,-500.0,0.00036712,2]
[314005776,1707923446898,-500.0,0.00036712,2]
[314005777,1707923446907,-500.0,0.00036712,2]
[314005778,1707923446917,-500.0,0.00036712,2]
[314005779,1707923446925,-500.0,0.00036712,2]
[314005780,1707923446935,-500.0,0.00036712,2]
[314005781,1707923446945,-400.86859948,0.00036712,2]
[314005782,1707923446956,-500.0,0.00036712,2]
[314005783,1707923446965,-569.56,0.00036712,2]
[314005784,1707923446974,-500.0,0.00036712,2]
[314005785,1707923446983,-505.67471474,0.00036712,2]
[314005786,1707923446992,-538.68,0.00036712,2]
[314005787,1707923447001,-500.0,0.00036712,2]
[314005788,1707923447010,-1152.13,0.00036712,2]
[314005789,1707923447019,-500.0,0.00036712,2]
[314005790,1707923447028,-785.09,0.00036712,2]
[314005791,1707923447037,-500.0,0.00036712,2]
[314005792,1707923447047,-1376.22,0.00036712,2]
[314005793,1707923447057,-500.0,0.00036712,2]
[314005794,1707923447067,-500.0,0.00036712,2]
[314005795,1707923447076,-500.0,0.00036712,2]
[314005796,1707923447085,-770.95,0.00036712,2]
[314005797,1707923447095,-500.0,0.00036712,2]
[314005799,1707923447104,-381.84272449,0.00036712,2]
[314005801,1707923447117,-1599.92,0.00036712,2]
[314005803,1707923447126,-500.0,0.00036712,2]
[314005805,1707923447135,-500.0,0.00036712,2]
[314005807,1707923447145,-500.0,0.00036712,2]
[314005809,1707923447154,-1153.23,0.00036712,2]
[314005811,1707923447164,-1045.09,0.00036712,2]
[314005813,1707923447173,-500.0,0.00036712,2]
[314005815,1707923447183,-500.0,0.00036712,2]
[314005817,1707923447193,-774.56,0.00036712,2]
[314005819,1707923447202,-511.27482697,0.00036712,2]
[314005821,1707923447212,-1031.35,0.00036712,2]
[314005823,1707923447222,-548.76,0.00036712,2]
[314005825,1707923447231,-500.0,0.00036712,2]
[314005827,1707923447241,-500.0,0.00036712,2]
[314005829,1707923447251,-661.87,0.00036712,2]
[314005831,1707923447260,-500.0,0.00036712,2]
[314005832,1707923447270,-584.37,0.00036712,2]
[314005833,1707923447279,-500.0,0.00036712,2]
[314005834,1707923447289,-500.0,0.00036712,2]
[314005835,1707923447298,-520.1,0.00036712,2]
[314005836,1707923447307,-508.71671374,0.00036712,2]
[314005837,1707923447316,-1604.0,0.00036712,2]
[314005838,1707923447325,-943.16,0.00036712,2]
[314005839,1707923447334,-500.0,0.00036712,2]
[314005840,1707923447345,-500.0,0.00036712,2]
[314005841,1707923447358,-500.0,0.00036712,2]
[314005842,1707923447369,-500.0,0.00036712,2]
[314005843,1707923447378,-500.0,0.00036712,2]
[314005844,1707923447387,-511.46170133,0.00036712,2]
[314005845,1707923447396,-500.0,0.00036712,2]
[314005846,1707923447405,-644.22,0.00036712,2]
[314005847,1707923447416,-704.7,0.00036712,2]
[314005848,1707923447427,-1264.92,0.00036712,2]
[314005849,1707923447436,-500.0,0.00036712,2]
[314005850,1707923447445,-1136.26,0.00036712,2]
[314005851,1707923447454,-513.93576816,0.00036712,2]
[314005852,1707923447464,-812.61,0.00036712,2]
[314005853,1707923447473,-570.14,0.00036712,2]
[314005854,1707923447482,-500.0,0.00036712,2]
[314005855,1707923447491,-500.0,0.00036712,2]
[314005856,1707923447502,-553.03,0.00036712,2]
[314005857,1707923447512,-519.06,0.00036712,2]
[314005858,1707923447521,-500.0,0.00036712,2]
[314005859,1707923447530,-500.0,0.00036712,2]
[314005860,1707923447539,-500.0,0.00036712,2]
[314005861,1707923447549,-1130.05,0.00036712,2]
[314005862,1707923447558,-733.41,0.00036712,2]
[314005863,1707923447567,-515.07545902,0.00036712,2]
[314005864,1707923447576,-500.0,0.00036712,2]
[314005865,1707923447585,-674.48,0.00036712,2]
[314005866,1707923447594,-500.0,0.00036712,2]
[314005867,1707923447604,-500.0,0.00036712,2]
[314005868,1707923447614,-500.0,0.00036712,2]
[314005869,1707923447624,-599.48,0.00036712,2]
[314005870,1707923447633,-500.0,0.00036712,2]
[314005871,1707923447642,-699.45,0.00036712,2]
[314005872,1707923447652,-500.0,0.00036712,2]
[314005873,1707923447662,-500.0,0.00036712,2]
[314005874,1707923447672,-500.0,0.00036712,2]
[314005875,1707923447681,-647.83,0.00036712,2]
[314005876,1707923447690,-808.31,0.00036712,2]
[314005877,1707923447699,-511.58478965,0.00036712,2]
[314005878,1707923447708,-189.10399249,0.00036712,2]
[314005879,1707923447718,-517.84516999,0.00036712,2]
[314005880,1707923447727,-500.0,0.00036712,2]
[314005881,1707923447736,-500.0,0.00036712,2]
[314005882,1707923447747,-500.0,0.00036712,2]
[314005883,1707923447757,-500.0,0.00036712,2]
[314005884,1707923447767,-500.0,0.00036712,2]
[314005885,1707923447778,-500.0,0.00036712,2]
[314005886,1707923447787,-581.69900433,0.00036712,2]
[314005887,1707923447796,-1377.65,0.00036712,2]
[314005888,1707923447805,-500.0,0.00036712,2]
[314005889,1707923447814,-500.0,0.00036712,2]
[314005890,1707923447823,-734.76,0.00036712,2]
[314005891,1707923447833,-1574.35,0.00036712,2]
[314005892,1707923447843,-1145.4,0.00036712,2]
[314005893,1707923447852,-1361.9,0.00036712,2]
[314005894,1707923447864,-500.0,0.00036712,2]
[314005895,1707923447873,-500.0,0.00036712,2]
[314005896,1707923447883,-500.0,0.00036712,2]
[314005897,1707923447892,-500.0,0.00036712,2]
[314005898,1707923447901,-500.0,0.00036712,2]
[314005899,1707923447911,-500.0,0.00036712,2]
[314005900,1707923447920,-1000.98,0.00036712,2]
[314005901,1707923447929,-500.0,0.00036712,2]
[314005902,1707923447938,-940.65,0.00036712,2]
[314005903,1707923447949,-819.39,0.00036712,2]
[314005904,1707923447959,-500.0,0.00036712,2]
[314005905,1707923447968,-500.0,0.00036712,2]
[314005906,1707923447978,-664.33,0.00036712,2]
[314005907,1707923447987,-500.0,0.00036712,2]
[314005908,1707923447996,-500.0,0.00036712,2]
[314005909,1707923448005,-500.0,0.00036712,2]
[314005910,1707923448014,-500.0,0.00036712,2]
[314005911,1707923448024,-500.0,0.00036712,2]
[314005912,1707923448034,-574.43,0.00036712,2]
[314005913,1707923448043,-505.35933131,0.00036712,2]
[314005914,1707923448054,-582.92,0.00036712,2]
[314005915,1707923448064,-500.0,0.00036712,2]
[314005916,1707923448075,-709.41,0.00036712,2]
[314005917,1707923448084,-523.78,0.00036712,2]
[314005918,1707923448093,-532.21021883,0.00036712,2]
[314005919,1707923448102,-584.12,0.00036712,2]
[314005920,1707923448112,-629.64,0.00036712,2]
[314005921,1707923448121,-500.0,0.00036712,2]
[314005922,1707923448130,-500.0,0.00036712,2]
[314005923,1707923448139,-549.4,0.00036712,2]
[314005924,1707923448148,-500.0,0.00036712,2]
[314005925,1707923448157,-1007.67,0.00036712,2]
[314005926,1707923448166,-500.0,0.00036712,2]
[314005927,1707923448175,-2090.09,0.00036712,2]
[314005928,1707923448184,-506.76491186,0.00036712,2]
[314005929,1707923448193,-551.86,0.00036712,2]
[314005930,1707923448202,-964.24,0.00036712,2]
[314005931,1707923448211,-500.0,0.00036712,2]
[314005932,1707923448220,-500.0,0.00036712,2]
[314005933,1707923448229,-500.0,0.00036712,2]
[314005934,1707923448239,-500.0,0.00036712,2]
[314005935,1707923448249,-519.96512816,0.00036712,2]
[314005936,1707923448258,-633.52,0.00036712,2]
[314005937,1707923448269,-500.0,0.00036712,2]
[314005938,1707923448278,-500.0,0.00036712,2]
[314005939,1707923448287,-500.0,0.00036712,2]
[314005940,1707923448296,-500.0,0.00036712,2]
[314005941,1707923448305,-268.43036429,0.00036712,2]
[314005942,1707923448314,-500.0,0.00036712,2]
[314005943,1707923448323,-500.0,0.00036712,2]
[314005944,1707923448332,-507.83497168,0.00036712,2]
[314005945,1707923448341,-1464.25,0.00036712,2]
[314005946,1707923448350,-500.0,0.00036712,2]
[314005947,1707923448362,-547.73,0.00036712,2]
[314005948,1707923448370,-760.6,0.00036712,2]
[314005949,1707923448379,-500.0,0.00036712,2]
[314005950,1707923448389,-1470.37,0.00036712,2]
[314005951,1707923448398,-500.0,0.00036712,2]
[314005952,1707923448407,-608.25,0.00036712,2]
[314005953,1707923448416,-500.0,0.00036712,2]
[314005954,1707923448426,-500.0,0.00036712,2]
[314005955,1707923448435,-500.0,0.00036712,2]
[314005956,1707923448444,-1725.04,0.00036712,2]
[314005957,1707923448454,-500.0,0.00036712,2]
[314005958,1707923448463,-554.39,0.00036712,2]
[314005959,1707923448472,-500.0,0.00036712,2]
[314005960,1707923448481,-500.0,0.00036712,2]
[314005961,1707923448490,-1351.58,0.00036712,2]
[314005962,1707923448499,-500.0,0.00036712,2]
[314005963,1707923448508,-500.0,0.00036712,2]
[314005964,1707923448517,-500.0,0.00036712,2]
[314005965,1707923448526,-500.0,0.00036712,2]
[314005966,1707923448535,-500.0,0.00036712,2]
[314005967,1707923448545,-500.0,0.00036712,2]
[314005968,1707923448554,-638.35,0.00036712,2]
[314005969,1707923448563,-500.0,0.00036712,2]
[314005970,1707923448572,-500.0,0.00036712,2]
[314005971,1707923448581,-500.0,0.00036712,2]
[314005972,1707923448591,-500.0,0.00036712,2]
[314005973,1707923448601,-500.0,0.00036712,2]
[314005974,1707923448612,-500.0,0.00036712,2]
[314005975,1707923448622,-500.0,0.00036712,2]
[314005976,1707923448631,-974.92,0.00036712,2]
[314005977,1707923448640,-855.82,0.00036712,2]
[314005978,1707923448650,-619.45,0.00036712,2]
[314005979,1707923448659,-500.0,0.00036712,2]
[314005980,1707923448668,-526.67747501,0.00036712,2]
[314005981,1707923448678,-500.0,0.00036712,2]
[314005982,1707923448687,-500.0,0.00036712,2]
[314005983,1707923448696,-500.0,0.00036712,2]
[314005984,1707923448705,-896.42,0.00036712,2]
[314005985,1707923448715,-1157.75,0.00036712,2]
[314005986,1707923448723,-500.0,0.00036712,2]
[314005987,1707923448733,-500.0,0.00036712,2]
[314005988,1707923448742,-500.0,0.00036712,2]
[314005989,1707923448752,-207.69467369,0.00036712,7]
[314005990,1707923448761,-500.0,0.00036712,2]
[314005991,1707923448770,-500.0,0.00036712,2]
[314005992,1707923448779,-500.0,0.00036712,2]
[314005993,1707923448788,-559.89383434,0.00036712,2]
[314005994,1707923448797,-500.0,0.00036712,2]
[314005995,1707923448806,-500.0,0.00036712,2]
[314005996,1707923448816,-500.0,0.00036712,2]
[314005997,1707923448826,-544.41,0.00036712,2]
[314005998,1707923448836,-586.61,0.00036712,2]
[314005999,1707923448847,-500.0,0.00036712,2]
[314006000,1707923448857,-500.0,0.00036712,2]
[314006001,1707923448869,-500.0,0.00036712,2]
[314006002,1707923448878,-500.0,0.00036712,2]
[314006003,1707923448888,-863.99,0.00036712,2]
[314006004,1707923448897,-500.0,0.00036712,2]
[314006005,1707923448907,-519.0954282,0.00036712,2]
[314006006,1707923448917,-500.0,0.00036712,2]
[314006007,1707923448926,-969.91,0.00036712,2]
[314006008,1707923448936,-500.0,0.00036712,2]
[314006009,1707923448948,-500.0,0.00036712,2]
[314006010,1707923448958,-500.0,0.00036712,2]
[314006011,1707923448966,-500.0,0.00036712,2]
[314006012,1707923448976,-500.0,0.00036712,2]
[314006013,1707923448986,-597.96,0.00036712,2]
[314006014,1707923448995,-1237.52,0.00036712,2]
[314006015,1707923449005,-500.0,0.00036712,2]
[314006016,1707923449014,-500.0,0.00036712,2]
[314006017,1707923449023,-500.0,0.00036712,2]
[314006018,1707923449032,-500.0,0.00036712,2]
[314006019,1707923449042,-500.0,0.00036712,2]
[314006020,1707923449051,-500.0,0.00036712,2]
[314006021,1707923449062,-686.48,0.00036712,2]
[314006022,1707923449073,-500.0,0.00036712,2]
[314006023,1707923449082,-500.0,0.00036712,2]
[314006024,1707923449091,-500.0,0.00036712,2]
[314006025,1707923449100,-500.0,0.00036712,2]
[314006026,1707923449112,-633.51,0.00036712,2]
[314006027,1707923449122,-500.0,0.00036712,2]
[314006028,1707923449131,-500.0,0.00036712,2]
[314006029,1707923449141,-500.0,0.00036712,2]
[314006030,1707923449152,-1310.86,0.00036712,2]
[314006031,1707923449162,-500.0,0.00036712,2]
[314006032,1707923449171,-500.0,0.00036712,2]
[314006033,1707923449180,-646.21,0.00036712,2]
[314006034,1707923449190,-500.0,0.00036712,2]
[314006035,1707923449199,-500.0,0.00036712,2]
[314006036,1707923449208,-500.0,0.00036712,2]
[314006037,1707923449219,-643.81,0.00036712,2]
[314006038,1707923449228,-500.0,0.00036712,2]
[314006039,1707923449237,-500.0,0.00036712,2]
[314006040,1707923449248,-500.0,0.00036712,2]
[314006041,1707923449258,-285.43161133,0.00036712,2]
[314006042,1707923449268,-500.0,0.00036712,2]
[314006043,1707923449278,-500.0,0.00036712,2]
[314006044,1707923449287,-632.83,0.00036712,2]
[314006045,1707923449297,-1166.74,0.00036712,2]
[314006046,1707923449306,-500.0,0.00036712,2]
[314006047,1707923449315,-500.0,0.00036712,2]
[314006048,1707923449325,-500.0,0.00036712,2]
[314006049,1707923449334,-500.0,0.00036712,2]
[314006050,1707923449344,-778.72,0.00036712,2]
[314006051,1707923449354,-500.0,0.00036712,2]
[314006052,1707923449366,-500.0,0.00036712,2]
[314006053,1707923449376,-537.19,0.00036712,2]
[314006054,1707923449385,-500.0,0.00036712,2]
[314006055,1707923449395,-500.0,0.00036712,2]
[314006056,1707923449405,-522.92,0.00036712,2]
[314006057,1707923449414,-540.0,0.00036712,2]
[314006058,1707923449423,-500.0,0.00036712,2]
[314006059,1707923449432,-500.0,0.00036712,2]
[314006060,1707923449442,-500.0,0.00036712,2]
[314006061,1707923449451,-839.23,0.00036712,2]
[314006062,1707923449462,-500.0,0.00036712,2]
[314006063,1707923449471,-860.82,0.00036712,2]
[314006064,1707923449481,-500.0,0.00036712,2]
[314006065,1707923449490,-500.0,0.00036712,2]
[314006066,1707923449499,-500.0,0.00036712,2]
[314006067,1707923449509,-500.0,0.00036712,2]
[314006068,1707923449519,-500.0,0.00036712,2]
[314006069,1707923449528,-500.0,0.00036712,2]
[314006070,1707923449538,-710.26,0.00036712,2]
[314006071,1707923449548,-500.0,0.00036712,2]
[314006072,1707923449558,-500.0,0.00036712,2]
[314006073,1707923449568,-500.0,0.00036712,2]
[314006074,1707923449577,-500.0,0.00036712,2]
[314006075,1707923449586,-500.0,0.00036712,2]
[314006076,1707923449596,-500.0,0.00036712,2]
[314006077,1707923449605,-500.0,0.00036712,2]
[314006078,1707923449617,-576.23724839,0.00036712,2]
[314006079,1707923449626,-500.0,0.00036712,2]
[314006080,1707923449637,-635.50793876,0.00036712,2]
[314006081,1707923449648,-500.0,0.00036712,2]
[314006082,1707923449658,-500.0,0.00036712,2]
[314006083,1707923449668,-500.0,0.00036712,2]
[314006084,1707923449678,-500.0,0.00036712,2]
[314006085,1707923449687,-594.3,0.00036712,2]
[314006086,1707923449697,-500.0,0.00036712,2]
[314006087,1707923449706,-500.0,0.00036712,2]
[314006088,1707923449716,-500.0,0.00036712,2]
[314006089,1707923449725,-500.0,0.00036712,2]
[314006090,1707923449735,-500.0,0.00036712,2]
[314006091,1707923449746,-500.0,0.00036712,2]
[314006092,1707923449756,-500.0,0.00036712,2]
[314006093,1707923449767,-500.0,0.00036712,2]
[314006094,1707923449776,-260.22685945,0.00036712,2]
[314006095,1707923449786,-500.0,0.00036712,2]
[314006096,1707923449796,-1376.8,0.00036712,2]
[314006097,1707923449806,-500.0,0.00036712,2]
[314006098,1707923449816,-500.0,0.00036712,2]
[314006099,1707923449825,-500.0,0.00036712,2]
[314006100,1707923449835,-500.0,0.00036712,2]
[314006101,1707923449844,-563.0,0.00036712,2]
[314006102,1707923449856,-500.0,0.00036712,2]
[314006103,1707923449868,-689.41,0.00036712,2]
[314006104,1707923449877,-1735.17,0.00036712,2]
[314006105,1707923449887,-500.0,0.00036712,2]
[314006106,1707923449896,-1292.66,0.00036712,2]
[314006107,1707923449906,-151.21777762,0.00036712,2]
[314006108,1707923449915,-2576.99,0.00036712,2]
[314006109,1707923449925,-500.0,0.00036712,2]
[314006110,1707923449935,-500.0,0.00036712,2]
[314006111,1707923449946,-500.0,0.00036712,2]
[314006112,1707923449956,-500.0,0.00036712,2]
[314006113,1707923449966,-500.0,0.00036712,2]
[314006114,1707923449977,-500.0,0.00036712,2]
[314006115,1707923449990,-500.0,0.00036712,2]
[314006116,1707923450000,-1880.82,0.00036712,2]
[314006117,1707923450011,-506.08824678,0.00036712,2]
[314006118,1707923450021,-500.0,0.00036712,2]
[314006119,1707923450030,-551.14,0.00036712,2]
[314006120,1707923450041,-158.23170335,0.00036712,2]
[314006121,1707923450052,-500.0,0.00036712,2]
[314006122,1707923450063,-500.0,0.00036712,2]
[314006123,1707923450074,-395.17941559,0.00036712,2]
[314006124,1707923450085,-1420.44,0.00036712,2]
[314006125,1707923450095,-713.29,0.00036712,2]
[314006126,1707923450107,-1306.77,0.00036712,2]
[314006127,1707923450121,-865.48,0.00036712,2]
[314006128,1707923450132,-500.0,0.00036712,2]
[314006129,1707923450142,-500.0,0.00036712,2]
[314006130,1707923450152,-500.0,0.00036712,2]
[314006131,1707923450162,-500.0,0.00036712,2]
[314006132,1707923450172,-798.43,0.00036712,2]